[Event "Late-Titled-Tuesday-Blitz-June-04-2024"]
[Site "Chess.com"]
[Date "2024.06.04"]
[Round "6"]
[White "Likvidator228"]
[Black "sokidze"]
[Result "0-1"]
[WhiteElo "2585"]
[BlackElo "2789"]
[TimeControl "180+1"]
[EndTime "15:03:42 PDT"]
[Termination "sokidze won by resignation"]

1. d4 {[%clk 0:03:00.9]} 1... Nf6 {[%clk 0:02:59.7]} 2. Bf4 {[%clk 0:03:01.1]}
2... d5 {[%clk 0:02:59.8]} 3. e3 {[%clk 0:03:01.4]} 3... e6 {[%clk 0:03:00.4]}
4. Nf3 {[%clk 0:03:01.1]} 4... Bd6 {[%clk 0:03:01]} 5. Bg3 {[%clk 0:03:01.1]}
5... O-O {[%clk 0:03:01.5]} 6. Nbd2 {[%clk 0:03:00.8]} 6... c5 {[%clk
0:03:01.9]} 7. c3 {[%clk 0:03:00.8]} 7... Qc7 {[%clk 0:03:02.4]} 8. Ne5 {[%clk
0:03:00.3]} 8... Nbd7 {[%clk 0:03:02.8]} 9. f4 {[%clk 0:02:59.5]} 9... c4 {[%clk
0:03:03]} 10. Be2 {[%clk 0:02:55.6]} 10... b5 {[%clk 0:03:03]} 11. a3 {[%clk
0:02:49.4]} 11... Bb7 {[%clk 0:03:01.7]} 12. O-O {[%clk 0:02:49.8]} 12... Nb6
{[%clk 0:02:50]} 13. Bh4 {[%clk 0:02:47]} 13... Ne4 {[%clk 0:02:45.1]} 14. Nxe4
{[%clk 0:02:44.1]} 14... dxe4 {[%clk 0:02:45.5]} 15. Ng4 {[%clk 0:02:37.3]}
15... Nd5 {[%clk 0:02:37]} 16. Qd2 {[%clk 0:02:36.4]} 16... f6 {[%clk
0:02:28.2]} 17. h3 {[%clk 0:02:34.1]} 17... a5 {[%clk 0:01:59.5]} 18. f5 {[%clk
0:02:33.9]} 18... h5 {[%clk 0:01:56.6]} 19. Nf2 {[%clk 0:02:33.4]} 19... exf5
{[%clk 0:01:56]} 20. Bxh5 {[%clk 0:02:32.9]} 20... g5 {[%clk 0:01:52.1]} 21. Bg6
{[%clk 0:02:25]} 21... Ne7 {[%clk 0:01:52.1]} 22. Nxe4 {[%clk 0:02:18.1]} 22...
Bxe4 {[%clk 0:01:50]} 23. Bh5 {[%clk 0:02:13.5]} 23... gxh4 {[%clk 0:01:49.7]}
24. Kh1 {[%clk 0:02:12.8]} 24... Nd5 {[%clk 0:01:49.5]} 25. Qe2 {[%clk
0:02:12.8]} 25... Kh8 {[%clk 0:01:48]} 26. Bg6 {[%clk 0:02:13.1]} 26... Kg7
{[%clk 0:01:39]} 27. Bxf5 {[%clk 0:02:12.1]} 27... Bxf5 {[%clk 0:01:17.4]} 28.
Rxf5 {[%clk 0:02:11.7]} 28... Ne7 {[%clk 0:01:18.1]} 29. Qg4+ {[%clk 0:02:11.1]}
29... Ng6 {[%clk 0:01:17.1]} 30. e4 {[%clk 0:02:07.6]} 30... Rae8 {[%clk
0:01:15.5]} 31. Raf1 {[%clk 0:02:06.7]} 31... Qe7 {[%clk 0:01:09.2]} 32. Rxb5
{[%clk 0:01:58.9]} 32... Qxe4 {[%clk 0:01:06.6]} 33. Qd7+ {[%clk 0:01:59.4]}
33... Qe7 {[%clk 0:01:03.8]} 34. Qc6 {[%clk 0:01:59.5]} 34... Rc8 {[%clk
0:01:00.4]} 35. Qd5 {[%clk 0:01:55]} 35... f5 {[%clk 0:00:59.6]} 36. Rb6 {[%clk
0:01:48.8]} 36... Rf6 {[%clk 0:00:56]} 37. Rb7 {[%clk 0:01:41.9]} 37... Bc7
{[%clk 0:00:55.4]} 38. Qxc4 {[%clk 0:01:39.1]} 38... Qd6 {[%clk 0:00:55.3]} 0-1

[Event "Late-Titled-Tuesday-Blitz-June-04-2024"]
[Site "Chess.com"]
[Date "2024.06.04"]
[Round "6"]
[White "mohssenbinaddi"]
[Black "StoreySniper"]
[Result "0-1"]
[WhiteElo "2332"]
[BlackElo "2478"]
[TimeControl "180+1"]
[EndTime "15:03:45 PDT"]
[Termination "StoreySniper won by resignation"]

1. Nf3 {[%clk 0:03:00.9]} 1... g6 {[%clk 0:03:00.2]} 2. g3 {[%clk 0:03:01.8]}
2... Bg7 {[%clk 0:03:00.7]} 3. Bg2 {[%clk 0:03:02.3]} 3... d5 {[%clk 0:03:01.3]}
4. O-O {[%clk 0:03:02.8]} 4... c5 {[%clk 0:03:01.9]} 5. c4 {[%clk 0:03:03.1]}
5... d4 {[%clk 0:03:01.8]} 6. e3 {[%clk 0:03:03.1]} 6... Nc6 {[%clk 0:03:02]} 7.
exd4 {[%clk 0:03:04]} 7... cxd4 {[%clk 0:03:02.5]} 8. d3 {[%clk 0:03:04.2]} 8...
e5 {[%clk 0:03:02.4]} 9. Re1 {[%clk 0:03:05.1]} 9... f6 {[%clk 0:03:02.4]} 10.
b4 {[%clk 0:02:53.2]} 10... Nxb4 {[%clk 0:02:55.7]} 11. Ba3 {[%clk 0:02:50.9]}
11... Nc6 {[%clk 0:02:55]} 12. Nbd2 {[%clk 0:02:46.8]} 12... Nge7 {[%clk
0:02:48.8]} 13. Ne4 {[%clk 0:02:46.5]} 13... O-O {[%clk 0:02:48.8]} 14. Rb1
{[%clk 0:02:41.4]} 14... b6 {[%clk 0:02:29.1]} 15. c5 {[%clk 0:02:30.9]} 15...
bxc5 {[%clk 0:02:23.6]} 16. Nxc5 {[%clk 0:02:29]} 16... Kh8 {[%clk 0:02:05.9]}
17. Nd2 {[%clk 0:02:25.2]} 17... Rb8 {[%clk 0:01:53.2]} 18. Rxb8 {[%clk
0:02:12.4]} 18... Nxb8 {[%clk 0:01:52.8]} 19. Qa4 {[%clk 0:02:12.6]} 19... Bf5
{[%clk 0:01:37.4]} 20. Qxa7 {[%clk 0:02:09.9]} 20... Nbc6 {[%clk 0:01:29.4]} 21.
Qa6 {[%clk 0:02:01]} 21... Qa8 {[%clk 0:01:19.4]} 22. Nc4 {[%clk 0:01:40.1]}
22... Qxa6 {[%clk 0:01:14.9]} 23. Nxa6 {[%clk 0:01:40]} 23... Bxd3 {[%clk
0:01:13.7]} 24. Bxc6 {[%clk 0:01:34.9]} 24... Nxc6 {[%clk 0:00:57.4]} 25. Bxf8
{[%clk 0:01:34.6]} 25... Bxf8 {[%clk 0:00:58]} 26. Nxe5 {[%clk 0:01:21.6]} 26...
Nxe5 {[%clk 0:00:55]} 0-1

[Event "Late-Titled-Tuesday-Blitz-June-04-2024"]
[Site "Chess.com"]
[Date "2024.06.04"]
[Round "6"]
[White "K_A_S_T_O_R"]
[Black "DreamsAreFake"]
[Result "1-0"]
[WhiteElo "2883"]
[BlackElo "2700"]
[TimeControl "180+1"]
[EndTime "15:03:50 PDT"]
[Termination "K_A_S_T_O_R won by resignation"]

1. e4 {[%clk 0:03:00.9]} 1... c6 {[%clk 0:02:54]} 2. d4 {[%clk 0:02:59.7]} 2...
d5 {[%clk 0:02:54.5]} 3. exd5 {[%clk 0:03:00.2]} 3... cxd5 {[%clk 0:02:54.9]} 4.
c4 {[%clk 0:03:00.8]} 4... Nf6 {[%clk 0:02:54.7]} 5. Nc3 {[%clk 0:03:01.2]} 5...
g6 {[%clk 0:02:55.3]} 6. cxd5 {[%clk 0:03:00.8]} 6... Bg7 {[%clk 0:02:54.4]} 7.
Bc4 {[%clk 0:03:00.4]} 7... O-O {[%clk 0:02:54.5]} 8. Nge2 {[%clk 0:03:00.4]}
8... Nbd7 {[%clk 0:02:54.5]} 9. Nf4 {[%clk 0:03:00.3]} 9... Nb6 {[%clk
0:02:54.8]} 10. Bb3 {[%clk 0:03:00.2]} 10... Bf5 {[%clk 0:02:53]} 11. O-O {[%clk
0:02:58]} 11... g5 {[%clk 0:02:49.3]} 12. Nh5 {[%clk 0:02:56.7]} 12... Nxh5
{[%clk 0:02:45.9]} 13. Qxh5 {[%clk 0:02:55.7]} 13... h6 {[%clk 0:02:46.8]} 14.
h4 {[%clk 0:02:44]} 14... Bg6 {[%clk 0:02:45]} 15. Qg4 {[%clk 0:02:39.6]} 15...
f5 {[%clk 0:02:32.7]} 16. Qe2 {[%clk 0:02:37.7]} 16... f4 {[%clk 0:02:18.5]} 17.
d6+ {[%clk 0:02:34.7]} 17... e6 {[%clk 0:02:19.1]} 18. Qxe6+ {[%clk 0:02:20.9]}
18... Bf7 {[%clk 0:02:11]} 19. Qe7 {[%clk 0:02:06.4]} 19... Bxb3 {[%clk
0:02:06.8]} 20. axb3 {[%clk 0:02:04.5]} 20... Bxd4 {[%clk 0:02:07.2]} 21. Qe6+
{[%clk 0:01:59.6]} 21... Kg7 {[%clk 0:02:02.5]} 22. Rd1 {[%clk 0:01:54.8]} 22...
Bf6 {[%clk 0:01:52.6]} 23. hxg5 {[%clk 0:01:52.8]} 23... hxg5 {[%clk 0:01:52.5]}
24. Ra5 {[%clk 0:01:42.9]} 24... Qd7 {[%clk 0:01:47.1]} 25. Qxd7+ {[%clk
0:01:36.4]} 25... Nxd7 {[%clk 0:01:48]} 26. Nd5 {[%clk 0:01:36.6]} 26... a6
{[%clk 0:01:44.4]} 27. Nc7 {[%clk 0:01:34.2]} 27... Rae8 {[%clk 0:01:39.7]} 28.
Nxe8+ {[%clk 0:01:33.9]} 28... Rxe8 {[%clk 0:01:40.6]} 29. Kf1 {[%clk
0:01:33.9]} 29... Re4 {[%clk 0:01:38.5]} 30. Bd2 {[%clk 0:01:28.2]} 30... Rd4
{[%clk 0:01:35.9]} 31. Ke2 {[%clk 0:01:25.4]} 31... Re4+ {[%clk 0:01:35.9]} 32.
Kd3 {[%clk 0:01:24.4]} 32... Rd4+ {[%clk 0:01:36.2]} 33. Kc2 {[%clk 0:01:24.7]}
33... Rxd6 {[%clk 0:01:33.2]} 34. Bc3 {[%clk 0:01:23.8]} 34... Rxd1 {[%clk
0:01:33.5]} 35. Kxd1 {[%clk 0:01:23]} 35... Kg6 {[%clk 0:01:26.2]} 36. Rd5
{[%clk 0:01:21.7]} 36... Bxc3 {[%clk 0:01:21.9]} 37. Rxd7 {[%clk 0:01:16.2]}
37... Bxb2 {[%clk 0:01:22.3]} 38. Rxb7 {[%clk 0:01:16.7]} 38... Kf5 {[%clk
0:01:20]} 39. f3 {[%clk 0:01:08]} 39... a5 {[%clk 0:01:16.1]} 40. Rb5+ {[%clk
0:01:06.9]} 1-0

[Event "Late-Titled-Tuesday-Blitz-June-04-2024"]
[Site "Chess.com"]
[Date "2024.06.04"]
[Round "6"]
[White "DishonorOnYourCow"]
[Black "chessdjw"]
[Result "0-1"]
[WhiteElo "2578"]
[BlackElo "2766"]
[TimeControl "180+1"]
[EndTime "15:03:51 PDT"]
[Termination "chessdjw won on time"]

1. d4 {[%clk 0:00:47.4]} 1... d5 {[%clk 0:02:57.3]} 2. c4 {[%clk 0:00:46.4]}
2... e6 {[%clk 0:02:57.3]} 3. Nc3 {[%clk 0:00:46.3]} 3... Nf6 {[%clk 0:02:57.2]}
4. cxd5 {[%clk 0:00:46.2]} 4... exd5 {[%clk 0:02:57.7]} 5. Bg5 {[%clk 0:00:46]}
5... Be7 {[%clk 0:02:58.3]} 6. e3 {[%clk 0:00:45.4]} 6... h6 {[%clk 0:02:58.9]}
7. Bh4 {[%clk 0:00:45.2]} 7... Bg4 {[%clk 0:02:59.1]} 8. Qc2 {[%clk 0:00:41.8]}
8... O-O {[%clk 0:02:46.2]} 9. Bd3 {[%clk 0:00:41]} 9... c5 {[%clk 0:02:20.1]}
10. dxc5 {[%clk 0:00:29.7]} 10... d4 {[%clk 0:02:19.8]} 11. Nce2 {[%clk
0:00:12.6]} 11... dxe3 {[%clk 0:02:10.5]} 12. fxe3 {[%clk 0:00:13]} 12... Nd5
{[%clk 0:02:05]} 13. Bxe7 {[%clk 0:00:12.5]} 13... Qxe7 {[%clk 0:02:05.9]} 14.
e4 {[%clk 0:00:11.5]} 14... Nb4 {[%clk 0:01:58.7]} 15. Qd2 {[%clk 0:00:11.1]}
15... Qxc5 {[%clk 0:01:54.9]} 16. a3 {[%clk 0:00:09]} 16... Nxd3+ {[%clk
0:01:47.7]} 17. Qxd3 {[%clk 0:00:09.9]} 17... Nc6 {[%clk 0:01:47.5]} 18. Nf3
{[%clk 0:00:09.8]} 18... Rad8 {[%clk 0:01:30.4]} 0-1

[Event "Late-Titled-Tuesday-Blitz-June-04-2024"]
[Site "Chess.com"]
[Date "2024.06.04"]
[Round "6"]
[White "Jagerrmeisterr"]
[Black "subham777"]
[Result "0-1"]
[WhiteElo "2669"]
[BlackElo "2563"]
[TimeControl "180+1"]
[EndTime "15:04:01 PDT"]
[Termination "subham777 won by resignation"]

1. e4 {[%clk 0:03:00.9]} 1... e6 {[%clk 0:02:59.3]} 2. d4 {[%clk 0:02:59.6]}
2... d5 {[%clk 0:02:54.2]} 3. Nd2 {[%clk 0:02:59]} 3... c5 {[%clk 0:02:52]} 4.
dxc5 {[%clk 0:02:50.1]} 4... Bxc5 {[%clk 0:02:51.5]} 5. Bd3 {[%clk 0:02:50.2]}
5... Nc6 {[%clk 0:02:51.3]} 6. Ngf3 {[%clk 0:02:49.8]} 6... Nge7 {[%clk
0:02:49.1]} 7. O-O {[%clk 0:02:47.7]} 7... O-O {[%clk 0:02:46.9]} 8. e5 {[%clk
0:02:41.8]} 8... Ng6 {[%clk 0:02:46.2]} 9. Nb3 {[%clk 0:02:28.7]} 9... Bb6
{[%clk 0:02:43.5]} 10. Qe2 {[%clk 0:02:23]} 10... Bc7 {[%clk 0:02:39.5]} 11. Bg5
{[%clk 0:02:17.1]} 11... Qe8 {[%clk 0:02:28.5]} 12. Rae1 {[%clk 0:01:32.8]}
12... Ncxe5 {[%clk 0:02:19.1]} 13. Nxe5 {[%clk 0:01:32.7]} 13... Nxe5 {[%clk
0:02:19]} 14. Bxh7+ {[%clk 0:01:29.7]} 14... Kxh7 {[%clk 0:02:16.8]} 15. Qh5+
{[%clk 0:01:29.9]} 15... Kg8 {[%clk 0:02:16.9]} 16. Bf6 {[%clk 0:01:17.9]} 16...
Ng6 {[%clk 0:01:57.6]} 17. Re3 {[%clk 0:01:06.5]} 17... e5 {[%clk 0:01:41.9]}
18. g4 {[%clk 0:00:17.3]} 18... Qe6 {[%clk 0:01:32.1]} 19. Bxg7 {[%clk
0:00:13.3]} 19... Kxg7 {[%clk 0:01:25.1]} 20. h3 {[%clk 0:00:10.4]} 20... Rh8
{[%clk 0:01:20.1]} 21. Qg5 {[%clk 0:00:10.4]} 21... Bd8 {[%clk 0:01:20.7]} 0-1

[Event "Late-Titled-Tuesday-Blitz-June-04-2024"]
[Site "Chess.com"]
[Date "2024.06.04"]
[Round "6"]
[White "PapaieDudu"]
[Black "familijatop71"]
[Result "1-0"]
[WhiteElo "2332"]
[BlackElo "2284"]
[TimeControl "180+1"]
[EndTime "15:04:03 PDT"]
[Termination "PapaieDudu won on time"]

1. Nf3 {[%clk 0:03:00.2]} 1... d5 {[%clk 0:02:59.8]} 2. d4 {[%clk 0:03:00.4]}
2... Nf6 {[%clk 0:03:00.1]} 3. c4 {[%clk 0:03:00.4]} 3... e6 {[%clk 0:03:00.1]}
4. Nc3 {[%clk 0:02:59.7]} 4... Be7 {[%clk 0:02:59.8]} 5. Bg5 {[%clk 0:02:59.5]}
5... O-O {[%clk 0:02:58.5]} 6. e3 {[%clk 0:02:59.3]} 6... h6 {[%clk 0:02:58.9]}
7. Bh4 {[%clk 0:02:58.9]} 7... b6 {[%clk 0:02:56.5]} 8. Bd3 {[%clk 0:02:58.5]}
8... Bb7 {[%clk 0:02:56.6]} 9. O-O {[%clk 0:02:57.8]} 9... Nbd7 {[%clk
0:02:57.1]} 10. Qe2 {[%clk 0:02:56.9]} 10... c5 {[%clk 0:02:56.1]} 11. Rfd1
{[%clk 0:02:56.3]} 11... Ne4 {[%clk 0:02:50.5]} 12. Bg3 {[%clk 0:02:53.8]} 12...
Nxg3 {[%clk 0:02:37]} 13. hxg3 {[%clk 0:02:53.5]} 13... Nf6 {[%clk 0:02:30.2]}
14. Rac1 {[%clk 0:02:53.1]} 14... Ne4 {[%clk 0:02:11.4]} 15. dxc5 {[%clk
0:02:52.6]} 15... Nxc3 {[%clk 0:02:00.1]} 16. bxc3 {[%clk 0:02:53.5]} 16... Bxc5
{[%clk 0:01:49.7]} 17. cxd5 {[%clk 0:02:52.2]} 17... exd5 {[%clk 0:01:45.4]} 18.
c4 {[%clk 0:02:52.3]} 18... Qe7 {[%clk 0:01:30.4]} 19. cxd5 {[%clk 0:02:24.4]}
19... Bxd5 {[%clk 0:01:28.3]} 20. e4 {[%clk 0:02:22.7]} 20... Bb7 {[%clk
0:01:15]} 21. Nh4 {[%clk 0:02:22.5]} 21... Rad8 {[%clk 0:00:52]} 22. Nf5 {[%clk
0:02:19.6]} 22... Qf6 {[%clk 0:00:52]} 23. e5 {[%clk 0:02:17.8]} 23... Qc6
{[%clk 0:00:32.1]} 24. Ne7+ {[%clk 0:02:13]} 24... Bxe7 {[%clk 0:00:27.5]} 25.
Rxc6 {[%clk 0:02:12.7]} 25... Bxc6 {[%clk 0:00:28.4]} 26. Bb1 {[%clk 0:02:07.5]}
26... Bb5 {[%clk 0:00:17.4]} 27. Qc2 {[%clk 0:02:05.8]} 27... Rxd1+ {[%clk
0:00:11.3]} 28. Qxd1 {[%clk 0:02:06.7]} 28... Rd8 {[%clk 0:00:11.5]} 29. Qf3
{[%clk 0:02:07.6]} 29... Bg5 {[%clk 0:00:05.3]} 30. Kh2 {[%clk 0:02:02.8]} 30...
a6 {[%clk 0:00:05.4]} 31. e6 {[%clk 0:02:01.7]} 31... fxe6 {[%clk 0:00:05]} 32.
Bg6 {[%clk 0:02:02.3]} 32... Rf8 {[%clk 0:00:04.5]} 33. Qb7 {[%clk 0:02:01.5]}
33... Rxf2 {[%clk 0:00:01.8]} 34. Qc8+ {[%clk 0:01:58.8]} 1-0

[Event "Late-Titled-Tuesday-Blitz-June-04-2024"]
[Site "Chess.com"]
[Date "2024.06.04"]
[Round "6"]
[White "stollenmonster"]
[Black "wonderfultime"]
[Result "1-0"]
[WhiteElo "2881"]
[BlackElo "3043"]
[TimeControl "180+1"]
[EndTime "15:04:16 PDT"]
[Termination "stollenmonster won by resignation"]

1. e4 {[%clk 0:03:00.9]} 1... e5 {[%clk 0:02:57.2]} 2. Nc3 {[%clk 0:02:59.7]}
2... Nf6 {[%clk 0:02:55.3]} 3. g3 {[%clk 0:02:59.4]} 3... Bc5 {[%clk 0:02:54.5]}
4. Bg2 {[%clk 0:02:59.7]} 4... d6 {[%clk 0:02:53.2]} 5. h3 {[%clk 0:02:59.5]}
5... O-O {[%clk 0:02:50.3]} 6. Nge2 {[%clk 0:02:59.7]} 6... Nc6 {[%clk
0:02:45.9]} 7. O-O {[%clk 0:02:59.4]} 7... h6 {[%clk 0:02:22.5]} 8. d3 {[%clk
0:02:57]} 8... Nh7 {[%clk 0:02:21.6]} 9. Kh2 {[%clk 0:02:57.4]} 9... f5 {[%clk
0:02:19.7]} 10. f4 {[%clk 0:02:55.7]} 10... Bb6 {[%clk 0:02:07.3]} 11. exf5
{[%clk 0:02:52.7]} 11... Bxf5 {[%clk 0:02:07.1]} 12. g4 {[%clk 0:02:53.3]} 12...
Be6 {[%clk 0:02:05.5]} 13. f5 {[%clk 0:02:53.7]} 13... Bf7 {[%clk 0:02:06.1]}
14. Nd5 {[%clk 0:02:51.5]} 14... Kh8 {[%clk 0:02:04.7]} 15. Ng3 {[%clk
0:02:48.4]} 15... Nf6 {[%clk 0:01:42.8]} 16. Nxb6 {[%clk 0:02:43.1]} 16... axb6
{[%clk 0:01:42.8]} 17. g5 {[%clk 0:02:43.7]} 17... hxg5 {[%clk 0:01:41.4]} 18.
Bxg5 {[%clk 0:02:44.6]} 18... Bg8 {[%clk 0:01:29.5]} 19. Ne4 {[%clk 0:02:40.4]}
19... Qe8 {[%clk 0:01:26.2]} 20. Nxf6 {[%clk 0:01:46.7]} 20... gxf6 {[%clk
0:01:25.7]} 21. Bh4 {[%clk 0:01:47.4]} 21... Bh7 {[%clk 0:01:07.2]} 22. Bd5
{[%clk 0:01:29.1]} 22... Ne7 {[%clk 0:01:05.8]} 23. Be6 {[%clk 0:01:28.5]} 23...
Nc6 {[%clk 0:00:49.5]} 24. c3 {[%clk 0:01:25.7]} 24... Nd8 {[%clk 0:00:49.2]}
25. Bb3 {[%clk 0:01:22.7]} 25... Qe7 {[%clk 0:00:48.2]} 26. Qh5 {[%clk
0:01:18.6]} 26... c6 {[%clk 0:00:23.8]} 27. Rg1 {[%clk 0:01:17.9]} 27... d5
{[%clk 0:00:24.5]} 28. Rg6 {[%clk 0:01:18]} 28... Rc8 {[%clk 0:00:18]} 29. Rag1
{[%clk 0:01:16.9]} 29... Rc7 {[%clk 0:00:18.5]} 30. Qh6 {[%clk 0:01:16]} 1-0

[Event "Late-Titled-Tuesday-Blitz-June-04-2024"]
[Site "Chess.com"]
[Date "2024.06.04"]
[Round "6"]
[White "Meri-Arabidze"]
[Black "SaraciNderim"]
[Result "0-1"]
[WhiteElo "2684"]
[BlackElo "2889"]
[TimeControl "180+1"]
[EndTime "15:04:22 PDT"]
[Termination "SaraciNderim won on time"]

1. Nf3 {[%clk 0:03:00.9]} 1... d5 {[%clk 0:02:58.4]} 2. c4 {[%clk 0:03:01.1]}
2... e6 {[%clk 0:02:58.1]} 3. g3 {[%clk 0:03:00.9]} 3... dxc4 {[%clk 0:02:58.7]}
4. Qa4+ {[%clk 0:02:59.9]} 4... Bd7 {[%clk 0:02:58.4]} 5. Qxc4 {[%clk
0:02:59.7]} 5... c5 {[%clk 0:02:59.1]} 6. Ne5 {[%clk 0:02:53.9]} 6... Bd6 {[%clk
0:02:45.8]} 7. Nxd7 {[%clk 0:02:49.8]} 7... Qxd7 {[%clk 0:02:46.7]} 8. Bg2
{[%clk 0:02:49.4]} 8... Nc6 {[%clk 0:02:47.4]} 9. O-O {[%clk 0:02:46.5]} 9...
Rc8 {[%clk 0:02:47.7]} 10. d3 {[%clk 0:02:44.6]} 10... Nf6 {[%clk 0:02:47.5]}
11. Bg5 {[%clk 0:02:41.7]} 11... Be5 {[%clk 0:02:44]} 12. Nc3 {[%clk 0:02:36.2]}
12... Nd4 {[%clk 0:02:43.7]} 13. a4 {[%clk 0:02:20.4]} 13... h6 {[%clk
0:02:37.6]} 14. Bd2 {[%clk 0:01:55.8]} 14... O-O {[%clk 0:02:31.5]} 15. Rfc1
{[%clk 0:01:38.1]} 15... b6 {[%clk 0:02:23.2]} 16. e3 {[%clk 0:01:24.6]} 16...
Nc6 {[%clk 0:02:21.2]} 17. Bf1 {[%clk 0:01:13.1]} 17... Rfd8 {[%clk 0:02:18.1]}
18. Qb3 {[%clk 0:01:00.9]} 18... c4 {[%clk 0:02:08.4]} 19. Qxc4 {[%clk
0:00:51.8]} 19... Nd4 {[%clk 0:02:07.9]} 20. exd4 {[%clk 0:00:50.3]} 20... Rxc4
{[%clk 0:02:07.5]} 21. dxe5 {[%clk 0:00:44.4]} 21... Ng4 {[%clk 0:02:00.3]} 22.
dxc4 {[%clk 0:00:20.9]} 22... Qxd2 {[%clk 0:01:59.8]} 23. Ne4 {[%clk 0:00:20]}
23... Qxb2 {[%clk 0:01:58.1]} 24. Bg2 {[%clk 0:00:07.5]} 24... Qxe5 {[%clk
0:01:57.4]} 25. Rd1 {[%clk 0:00:05.9]} 25... Rxd1+ {[%clk 0:01:56.3]} 26. Rxd1
{[%clk 0:00:06.8]} 26... f5 {[%clk 0:01:56.7]} 27. Nd6 {[%clk 0:00:05.7]} 27...
Qc5 {[%clk 0:01:51.2]} 28. Rd2 {[%clk 0:00:03.3]} 28... Qb4 {[%clk 0:01:50.7]}
29. Rd1 {[%clk 0:00:02.6]} 29... Qc5 {[%clk 0:01:39.4]} 30. Rd2 {[%clk
0:00:02.5]} 30... Nxf2 {[%clk 0:01:39.9]} 31. Kf1 {[%clk 0:00:02]} 31... Ng4
{[%clk 0:01:38.9]} 32. Ke1 {[%clk 0:00:01.1]} 32... Qe3+ {[%clk 0:01:36.3]} 33.
Kd1 {[%clk 0:00:01.4]} 33... Nxh2 {[%clk 0:01:34.9]} 0-1

[Event "Late-Titled-Tuesday-Blitz-June-04-2024"]
[Site "Chess.com"]
[Date "2024.06.04"]
[Round "6"]
[White "Godzillator"]
[Black "Marielchessy"]
[Result "0-1"]
[WhiteElo "2410"]
[BlackElo "2346"]
[TimeControl "180+1"]
[EndTime "15:04:31 PDT"]
[Termination "Marielchessy won by checkmate"]

1. e4 {[%clk 0:03:00.9]} 1... c5 {[%clk 0:02:59.1]} 2. Nc3 {[%clk 0:02:59.2]}
2... Nc6 {[%clk 0:02:58.5]} 3. g3 {[%clk 0:02:59.5]} 3... g6 {[%clk 0:02:58.4]}
4. Bg2 {[%clk 0:02:59.9]} 4... Bg7 {[%clk 0:02:59]} 5. Nge2 {[%clk 0:02:59.5]}
5... d6 {[%clk 0:02:57.2]} 6. O-O {[%clk 0:02:59.6]} 6... e5 {[%clk 0:02:57.5]}
7. f4 {[%clk 0:02:59.1]} 7... Nge7 {[%clk 0:02:58]} 8. d3 {[%clk 0:02:57.7]}
8... O-O {[%clk 0:02:57.9]} 9. Nd5 {[%clk 0:02:56.9]} 9... f5 {[%clk 0:02:55.3]}
10. exf5 {[%clk 0:02:53]} 10... Bxf5 {[%clk 0:02:51.7]} 11. Nec3 {[%clk
0:02:50.8]} 11... Nd4 {[%clk 0:02:51.3]} 12. Nxe7+ {[%clk 0:02:50.5]} 12... Qxe7
{[%clk 0:02:51.3]} 13. Nd5 {[%clk 0:02:50.6]} 13... Qd8 {[%clk 0:02:49.9]} 14.
c3 {[%clk 0:02:50.6]} 14... Nc6 {[%clk 0:02:49]} 15. Be3 {[%clk 0:02:44.9]}
15... Qd7 {[%clk 0:02:46.3]} 16. Qd2 {[%clk 0:02:41]} 16... Rae8 {[%clk
0:02:46]} 17. Rae1 {[%clk 0:02:40.2]} 17... Bh3 {[%clk 0:02:43.5]} 18. a3 {[%clk
0:02:29.4]} 18... Bxg2 {[%clk 0:02:43.1]} 19. Qxg2 {[%clk 0:02:29.5]} 19... Ne7
{[%clk 0:02:42.2]} 20. Nxe7+ {[%clk 0:02:22.8]} 20... Rxe7 {[%clk 0:02:40.6]}
21. c4 {[%clk 0:02:21]} 21... b6 {[%clk 0:02:35]} 22. b4 {[%clk 0:02:16.5]}
22... exf4 {[%clk 0:02:30.5]} 23. Bxf4 {[%clk 0:02:15.6]} 23... Bd4+ {[%clk
0:02:29.9]} 24. Kh1 {[%clk 0:02:15.8]} 24... Rxe1 {[%clk 0:02:25.3]} 25. Rxe1
{[%clk 0:02:15.6]} 25... Re8 {[%clk 0:02:25.7]} 26. Qd5+ {[%clk 0:02:15.5]}
26... Kg7 {[%clk 0:02:25.8]} 27. Re4 {[%clk 0:02:01.9]} 27... Qh3 {[%clk
0:02:21.6]} 28. Qb7+ {[%clk 0:01:50.5]} 28... Kf6 {[%clk 0:02:07.9]} 29. Bg5+
{[%clk 0:00:26.6]} 29... Kxg5 {[%clk 0:02:06.5]} 30. Qd5+ {[%clk 0:00:18.4]}
30... Re5 {[%clk 0:02:02.3]} 31. Rxe5+ {[%clk 0:00:17.1]} 31... dxe5 {[%clk
0:01:53.6]} 32. Qf3 {[%clk 0:00:11]} 32... Qf5 {[%clk 0:01:48.3]} 33. h4+ {[%clk
0:00:10.4]} 33... Kf6 {[%clk 0:01:48.5]} 34. Qc6+ {[%clk 0:00:09.9]} 34... Kg7
{[%clk 0:01:48.3]} 35. Qc7+ {[%clk 0:00:08.5]} 35... Kh6 {[%clk 0:01:47.7]} 36.
Kg2 {[%clk 0:00:07.6]} 36... Qf2+ {[%clk 0:01:35.7]} 37. Kh3 {[%clk 0:00:07.5]}
37... Qf1+ {[%clk 0:01:36]} 38. Kh2 {[%clk 0:00:06.7]} 38... Bg1+ {[%clk
0:01:35.2]} 39. Kh1 {[%clk 0:00:06.9]} 39... Bf2+ {[%clk 0:01:35.4]} 40. Kh2
{[%clk 0:00:07.4]} 40... Qg1+ {[%clk 0:01:35.7]} 41. Kh3 {[%clk 0:00:08]} 41...
Qxg3# {[%clk 0:01:35.8]} 0-1

[Event "Late-Titled-Tuesday-Blitz-June-04-2024"]
[Site "Chess.com"]
[Date "2024.06.04"]
[Round "6"]
[White "Lennis93"]
[Black "IMJonathanCarlstedt"]
[Result "1-0"]
[WhiteElo "2736"]
[BlackElo "2571"]
[TimeControl "180+1"]
[EndTime "15:04:33 PDT"]
[Termination "Lennis93 won by resignation"]

1. d4 {[%clk 0:02:52.6]} 1... g6 {[%clk 0:02:59.5]} 2. e4 {[%clk 0:02:48.2]}
2... Bg7 {[%clk 0:02:59.6]} 3. Nc3 {[%clk 0:02:48.8]} 3... d6 {[%clk 0:02:59.3]}
4. f4 {[%clk 0:02:49.2]} 4... a6 {[%clk 0:02:59.7]} 5. Nf3 {[%clk 0:02:49.4]}
5... b5 {[%clk 0:02:59.7]} 6. h3 {[%clk 0:02:49.6]} 6... Bb7 {[%clk 0:02:59]} 7.
Bd3 {[%clk 0:02:48.2]} 7... Nd7 {[%clk 0:02:57.9]} 8. e5 {[%clk 0:02:44.5]} 8...
c5 {[%clk 0:02:57.2]} 9. Be4 {[%clk 0:02:35.3]} 9... Bxe4 {[%clk 0:02:52.2]} 10.
Nxe4 {[%clk 0:02:36.2]} 10... cxd4 {[%clk 0:02:47.5]} 11. exd6 {[%clk
0:02:31.7]} 11... Qb6 {[%clk 0:02:43.4]} 12. a4 {[%clk 0:02:13.3]} 12... Ngf6
{[%clk 0:02:35.1]} 13. Qe2 {[%clk 0:02:04.1]} 13... O-O {[%clk 0:02:25.9]} 14.
dxe7 {[%clk 0:01:58]} 14... Rfe8 {[%clk 0:02:25.2]} 15. Nxf6+ {[%clk 0:01:52.1]}
15... Bxf6 {[%clk 0:02:24.4]} 16. O-O {[%clk 0:01:52.1]} 16... Rxe7 {[%clk
0:02:11]} 17. Qf2 {[%clk 0:01:51.1]} 17... Rae8 {[%clk 0:02:06.7]} 18. Re1
{[%clk 0:01:48.6]} 18... Rxe1+ {[%clk 0:01:52.3]} 19. Nxe1 {[%clk 0:01:49.5]}
19... d3 {[%clk 0:01:49.3]} 20. Nf3 {[%clk 0:01:07.2]} 20... dxc2 {[%clk
0:01:43.1]} 21. axb5 {[%clk 0:01:06.4]} 21... axb5 {[%clk 0:01:41]} 22. Qxb6
{[%clk 0:01:06.4]} 22... Nxb6 {[%clk 0:01:39.6]} 23. Ra6 {[%clk 0:01:07.3]}
23... Be7 {[%clk 0:01:31.2]} 24. Kf1 {[%clk 0:01:03.6]} 24... Bc5 {[%clk
0:01:27.6]} 25. b4 {[%clk 0:00:58.6]} 25... Rd8 {[%clk 0:01:15.1]} 26. bxc5
{[%clk 0:00:51.7]} 26... Rd1+ {[%clk 0:01:13.8]} 27. Ke2 {[%clk 0:00:51.8]}
27... Nd5 {[%clk 0:01:00.4]} 28. Bd2 {[%clk 0:00:38]} 28... Nc3+ {[%clk
0:00:47.8]} 29. Bxc3 {[%clk 0:00:36.9]} 1-0